bitfinex/quotes_BTCUSD_20230117
["timestamp","ask_amount","ask_price","bid_price","bid_amount"]
[1673969002570,3.03665087,21322.0,21321.0,0.00752204]
[1673969002815,3.04515087,21322.0,21321.0,0.00752204]
[1673969003052,3.33665087,21322.0,21321.0,0.00752204]
[1673969003549,3.34515087,21322.0,21321.0,2.204e-05]
[1673969003799,0.15,21321.0,21314.0,0.00864296]
[1673969004052,0.1222,21318.0,21314.0,0.00864296]
[1673969004302,3.23554617,21317.0,21314.0,0.00864296]
[1673969004557,1.09843269,21316.0,21314.0,0.00864296]
[1673969004807,1.259537,21315.0,21314.0,0.00864296]
[1673969005776,2.03154216,21315.0,21314.0,0.00864296]
[1673969006021,0.560153,21315.0,21314.0,0.00864296]
[1673969006266,0.091,21315.0,21314.0,0.15533296]
[1673969006797,0.469097,21318.0,21314.0,0.44075954]
[1673969007046,1.01045246,21321.0,21316.0,0.15]
[1673969007047,0.86044346,21321.0,21316.0,0.15]
[1673969007293,0.86044346,21321.0,21318.0,0.1228]
[1673969007540,0.39141246,21321.0,21320.0,0.1231]
[1673969007780,0.39141246,21321.0,21320.0,0.63518495]
[1673969008022,0.468979,21323.0,21320.0,0.63518495]
[1673969008275,0.46897,21324.0,21320.0,0.31382595]
[1673969008521,0.937925,21324.0,21320.0,0.31382595]
[1673969008752,0.075,21321.0,21320.0,0.31582595]
[1673969009001,0.40896998,21323.0,21320.0,0.1231]
[1673969009248,0.075,21324.0,21322.0,0.1224]
[1673969009508,0.90487001,21325.0,21323.0,0.444459]
[1673969009746,0.90487001,21325.0,21323.0,0.1231]
[1673969010232,0.468883,21328.0,21323.0,0.58415332]
[1673969010484,0.86450697,21329.0,21324.0,0.19072595]
[1673969010765,1.05972837,21329.0,21325.0,0.19072595]
[1673969011236,0.50067707,21327.0,21325.0,0.19072595]
[1673969011480,0.50067707,21327.0,21321.0,0.45753]
[1673969011481,1.10137952,21327.0,21321.0,0.1231]
[1673969011721,0.2888381,21326.0,21325.0,0.07419]
[1673969011979,1.44106841,21327.0,21325.0,0.07319]
[1673969011980,0.96956707,21327.0,21325.0,0.07319]
[1673969012213,0.58367707,21327.0,21325.0,0.07419]
[1673969012468,0.50067707,21327.0,21325.0,0.07319]
[1673969012716,0.083,21326.0,21325.0,0.07419]
[1673969013482,0.50067707,21327.0,21325.0,0.07319]
[1673969014266,0.468852,21329.0,21325.0,0.19629]
[1673969014541,0.61888,21331.0,21325.0,0.71762354]
[1673969014542,0.083,21327.0,21325.0,0.71762354]
[1673969014797,0.083,21327.0,21326.0,0.566959]
[1673969015038,0.468841,21330.0,21326.0,0.566959]
[1673969015271,0.468841,21330.0,21329.0,0.1231]
[1673969015512,0.96395418,21330.0,21329.0,0.1231]
[1673969015839,0.96395418,21330.0,21327.0,0.122]
[1673969015840,1.28531318,21330.0,21327.0,0.122]
[1673969016017,0.49511318,21330.0,21327.0,0.12191443]
[1673969016262,6e-05,21331.0,21329.0,0.122]
[1673969016518,0.083,21330.0,21329.0,0.123]
[1673969016793,6e-05,21331.0,21329.0,0.90457095]
[1673969017028,6e-05,21331.0,21330.0,0.566859]
[1673969017270,6e-05,21331.0,21330.0,0.56587695]
[1673969017507,6e-05,21331.0,21330.0,0.71587695]
[1673969017752,6e-05,21331.0,21330.0,1.18469995]
[1673969018240,6e-05,21331.0,21330.0,0.56587695]
[1673969018481,6e-05,21331.0,21330.0,0.32037695]
[1673969018736,0.07506,21331.0,21330.0,0.07519]
[1673969018981,0.07506,21331.0,21330.0,0.002]
[1673969019246,0.07506,21331.0,21330.0,0.07519]
[1673969019495,6e-05,21331.0,21330.0,0.19519]
[1673969019741,6e-05,21331.0,21330.0,0.19719]
[1673969019742,0.07606,21331.0,21330.0,0.19719]
[1673969019994,6e-05,21331.0,21330.0,0.19019]
[1673969021012,6e-05,21331.0,21330.0,0.511412]
[1673969021496,0.07506,21331.0,21330.0,0.19219]
[1673969021741,6e-05,21331.0,21327.0,0.590973]
[1673969021987,0.13181245,21330.0,21327.0,0.590973]
[1673969022259,0.13181245,21330.0,21329.0,0.30659483]
[1673969022501,0.07606,21331.0,21330.0,0.14769]
[1673969022754,6e-05,21331.0,21330.0,0.14669]
[1673969023776,0.07606,21331.0,21330.0,0.14769]
[1673969024018,0.07606,21331.0,21330.0,0.001]
[1673969024761,0.07606,21331.0,21329.0,0.77543983]
[1673969024762,6e-05,21331.0,21329.0,0.77543983]
[1673969025021,0.05606,21331.0,21330.0,0.002]
[1673969025996,0.05606,21331.0,21330.0,0.07519]
[1673969029194,0.05606,21331.0,21330.0,0.002]
[1673969029434,0.993662,21331.0,21330.0,0.002]
[1673969029742,1.314884,21331.0,21330.0,0.002]
[1673969030019,1.614884,21331.0,21330.0,0.002]
[1673969030256,1.558884,21331.0,21326.0,0.1228]
[1673969030497,0.45303445,21330.0,21326.0,0.1228]
[1673969030748,0.937698,21329.0,21326.0,0.1228]
[1673969032285,0.945698,21329.0,21326.0,0.1378]
[1673969033981,0.321222,21328.0,21326.0,0.1378]
[1673969034232,0.468889,21327.0,21326.0,0.1378]
[1673969034481,0.468881,21328.0,21326.0,0.1378]
[1673969034724,0.937764,21328.0,21326.0,0.1378]
[1673969034964,0.468883,21328.0,21326.0,0.1378]
[1673969035448,0.468836,21330.0,21327.0,0.38208606]
[1673969035716,0.937694,21331.0,21327.0,0.91879901]
[1673969035961,0.937694,21331.0,21327.0,1.38768801]
[1673969036223,0.468873,21331.0,21328.0,0.321222]
[1673969036467,0.468873,21331.0,21327.0,1.19694806]
[1673969036729,1.33334915,21331.0,21327.0,0.74307306]
[1673969036986,0.13181245,21330.0,21327.0,0.1227]
[1673969037220,1.06950245,21329.0,21325.0,0.1229]
[1673969037471,0.45303445,21328.0,21323.0,0.468958]
[1673969037762,0.92192845,21327.0,21322.0,0.43707789]
[1673969037994,0.13181245,21326.0,21322.0,0.90606089]
[1673969038250,0.13181245,21326.0,21322.0,1.37505989]
[1673969038501,0.13181245,21326.0,21323.0,0.014]
[1673969038750,0.62372298,21326.0,21322.0,1.060361]
[1673969038990,0.60072445,21326.0,21322.0,1.060361]
[1673969039239,0.65572445,21326.0,21322.0,1.062361]
[1673969039484,0.60072445,21326.0,21322.0,1.060361]
[1673969039728,0.67772445,21326.0,21323.0,0.001]
[1673969039977,0.468912,21326.0,21322.0,1.060365]
[1673969040470,0.468912,21326.0,21322.0,1.25109095]
[1673969040973,0.523912,21326.0,21323.0,0.321222]
[1673969041224,0.523912,21326.0,21322.0,1.062362]
[1673969041720,0.468912,21326.0,21323.0,0.321222]
[1673969041957,0.545912,21326.0,21323.0,0.001]
[1673969042201,2.30332931,21326.0,21323.0,0.001]
[1673969042488,0.321222,21325.0,21323.0,0.001]
[1673969042722,1.259132,21324.0,21323.0,0.001]
[1673969042965,6.317e-05,21323.0,21321.0,0.44676661]
[1673969043207,6.317e-05,21323.0,21322.0,0.002]
[1673969043451,0.46904017,21323.0,21322.0,0.002]
[1673969044192,0.46904017,21323.0,21319.0,1.060904]
[1673969044461,1.06982962,21323.0,21319.0,0.91158479]
[1673969044970,1.07382962,21323.0,21322.0,0.013]
[1673969045270,1.07382962,21323.0,21319.0,0.591853]
[1673969045271,0.93801717,21323.0,21319.0,0.591853]
[1673969045555,0.94601717,21323.0,21319.0,0.605853]
[1673969045796,1.06982962,21323.0,21319.0,0.591853]
[1673969046096,1.07382962,21323.0,21322.0,0.013]
[1673969046318,0.94201717,21323.0,21322.0,0.013]
[1673969047044,0.93801717,21323.0,21319.0,0.1228]
[1673969047287,0.00806317,21323.0,21321.0,0.1231]
[1673969047535,6.317e-05,21323.0,21322.0,0.67219556]
[1673969047777,0.07806317,21323.0,21322.0,1.73429356]
[1673969048027,6.317e-05,21323.0,21322.0,1.73329356]
[1673969048283,0.07706317,21323.0,21322.0,1.73329356]
[1673969048782,6.317e-05,21323.0,21322.0,1.73329356]
[1673969049043,0.00406317,21323.0,21322.0,1.74629356]
[1673969050029,0.00406317,21323.0,21322.0,1.86939356]
[1673969050271,0.13587562,21323.0,21322.0,1.86939356]
[1673969050528,0.00406317,21323.0,21322.0,1.27729456]
[1673969050775,0.00406317,21323.0,21322.0,0.80829556]
[1673969051008,0.00406317,21323.0,21322.0,0.36397356]
[1673969051260,0.13587562,21323.0,21322.0,0.36397356]
[1673969051504,0.00406317,21323.0,21322.0,0.36397356]
[1673969052249,0.00406317,21323.0,21322.0,0.013]
[1673969053254,0.54654017,21323.0,21322.0,0.013]
[1673969053502,0.79426217,21323.0,21322.0,0.013]
[1673969054252,1.56323917,21323.0,21322.0,0.013]
[1673969055025,1.26323917,21323.0,21322.0,0.013]
[1673969055723,0.94201717,21323.0,21322.0,0.013]
[1673969055972,0.47304017,21323.0,21322.0,0.013]
[1673969056211,0.00406317,21323.0,21322.0,0.08619]
[1673969056707,0.00406317,21323.0,21322.0,0.407412]
[1673969056953,0.00406317,21323.0,21322.0,1.06713695]
[1673969057189,0.00406317,21323.0,21322.0,1.53294689]
[1673969057703,0.00406317,21323.0,21322.0,1.65584689]
[1673969058980,0.00406317,21323.0,21322.0,1.66434689]
[1673969059712,0.00406317,21323.0,21322.0,1.65584689]
[1673969060431,0.00406317,21323.0,21322.0,1.53294689]
[1673969065991,0.00406317,21323.0,21322.0,1.53184724]
[1673969066475,0.00406317,21323.0,21322.0,1.45865724]
[1673969066730,0.00406317,21323.0,21322.0,1.27112035]
[1673969066974,0.00406317,21323.0,21322.0,0.48089935]
[1673969067211,0.00406317,21323.0,21322.0,0.01190035]
[1673969068946,1.71638794,21323.0,21322.0,0.01190035]
[1673969069194,2.56396469,21323.0,21322.0,0.01190035]
[1673969069433,1.81165265,21323.0,21322.0,0.01190035]
[1673969069681,1.34267565,21323.0,21322.0,0.01190035]
[1673969069914,1.34267565,21323.0,21322.0,0.01183403]
[1673969069915,1.20314637,21323.0,21322.0,0.01183403]
[1673969070160,0.86943355,21323.0,21322.0,0.01183403]
[1673969070415,1.33018483,21323.0,21322.0,0.01170925]
[1673969071128,1.19065555,21323.0,21322.0,0.01170925]
[1673969071841,1.33018483,21323.0,21322.0,0.01170925]
[1673969072085,1.19065555,21323.0,21322.0,0.01170925]
[1673969072318,1.00896283,21323.0,21322.0,0.01170925]
[1673969072550,1.19065555,21323.0,21322.0,0.01170925]
[1673969072795,1.79916183,21323.0,21322.0,0.01170925]
[1673969073511,2.00845575,21323.0,21322.0,0.01170925]
[1673969073746,2.06631001,21323.0,21322.0,0.01170925]
[1673969073991,2.22678073,21323.0,21322.0,0.01170925]
[1673969074235,1.86892647,21323.0,21322.0,0.01170925]
[1673969074483,1.79997022,21323.0,21322.0,0.01170925]
[1673969074732,1.33841055,21323.0,21322.0,0.01170925]
[1673969074959,1.00977122,21323.0,21322.0,0.01170925]
[1673969075205,0.81860259,21324.0,21322.0,0.01170925]
[1673969075449,0.60930867,21324.0,21322.0,0.01170925]
[1673969075927,0.81860259,21324.0,21322.0,0.01170925]
[1673969076162,0.96597592,21323.0,21318.0,0.70236008]
[1673969076399,0.60081145,21322.0,21318.0,0.70236408]
[1673969076936,1.21014812,21322.0,21318.0,0.23329008]
[1673969077627,0.13181245,21321.0,21318.0,0.24929008]
[1673969077872,1.07842367,21320.0,21318.0,0.016]
[1673969078102,0.321222,21319.0,21318.0,0.016]
[1673969078350,0.790287,21319.0,21318.0,0.016]
[1673969078591,0.469065,21319.0,21318.0,0.016]
[1673969079293,1.259352,21319.0,21318.0,0.016]
[1673969079529,1.259352,21319.0,21314.0,0.47762367]
[1673969079763,0.13181245,21318.0,21314.0,0.00846867]
[1673969079994,0.469113,21317.0,21314.0,0.00846867]
[1673969080235,0.93862612,21318.0,21314.0,0.00846867]
[1673969080540,0.60092045,21318.0,21314.0,0.00846867]
[1673969080808,1.53952557,21318.0,21314.0,0.00846867]
[1673969081025,0.077,21317.0,21314.0,0.00946867]
[1673969081274,0.469131,21316.0,21314.0,0.00846867]
[1673969081505,0.469131,21316.0,21314.0,0.00839069]
[1673969082464,0.938262,21316.0,21314.0,0.00739069]
[1673969082712,0.938262,21316.0,21314.0,0.00839069]
[1673969082962,0.938262,21316.0,21314.0,0.00739069]
[1673969083199,1.015262,21316.0,21314.0,0.00839069]
[1673969083454,1.90584632,21316.0,21314.0,0.00839069]
[1673969083697,0.321222,21315.0,21314.0,0.00839069]
[1673969083943,1.40782412,21315.0,21314.0,0.00839069]
[1673969084195,0.938306,21315.0,21314.0,0.00839069]
[1673969084450,1.40782412,21315.0,21314.0,0.00739069]
[1673969084691,1.72904612,21315.0,21314.0,0.00739069]
[1673969085181,1.259528,21315.0,21314.0,0.00739069]
[1673969085425,0.545153,21315.0,21314.0,0.00839069]
[1673969086425,1.014306,21315.0,21314.0,0.00839069]
[1673969086937,1.335528,21315.0,21314.0,0.00839069]
[1673969087429,1.014306,21315.0,21314.0,0.00839069]
[1673969087675,1.335528,21315.0,21314.0,0.00839069]
[1673969088682,0.866375,21315.0,21314.0,0.00839069]
[1673969088917,0.545153,21315.0,21314.0,0.00839069]
[1673969089685,1.014306,21315.0,21314.0,0.00839069]
[1673969089928,1.335528,21315.0,21314.0,0.00839069]
[1673969090178,0.866375,21315.0,21314.0,0.00839069]
[1673969090658,0.076,21315.0,21314.0,0.08158069]
[1673969090939,0.076,21315.0,21314.0,0.15648069]
[1673969091174,0.076,21315.0,21314.0,0.08329069]
[1673969091943,0.076,21315.0,21314.0,0.00839069]
[1673969092446,1.014306,21315.0,21314.0,0.00839069]
[1673969092709,1.335528,21315.0,21314.0,0.00839069]
[1673969093945,1.014306,21315.0,21314.0,0.00839069]
[1673969094191,1.335528,21315.0,21314.0,0.00839069]
[1673969095403,1.014306,21315.0,21314.0,0.00839069]
[1673969095655,1.335528,21315.0,21314.0,0.00839069]
[1673969095898,1.014306,21315.0,21314.0,0.00839069]
[1673969096401,1.335528,21315.0,21314.0,0.00839069]
[1673969096638,1.014306,21315.0,21314.0,0.00839069]
[1673969096878,1.335528,21315.0,21314.0,0.00839069]
[1673969097865,1.014306,21315.0,21314.0,0.00839069]
[1673969098874,1.335528,21315.0,21314.0,0.00839069]
[1673969099123,1.014306,21315.0,21314.0,0.00839069]
[1673969099793,1.335528,21315.0,21314.0,0.00839069]
[1673969100052,1.014306,21315.0,21314.0,0.00839069]
[1673969100297,1.53520307,21315.0,21314.0,0.00839069]
[1673969100849,2.00472119,21315.0,21314.0,0.00839069]
[1673969101131,1.335528,21315.0,21314.0,0.00839069]
[1673969102668,1.014306,21315.0,21314.0,0.00839069]
[1673969102933,1.335528,21315.0,21314.0,0.00839069]
[1673969103721,1.014306,21315.0,21314.0,0.00839069]
[1673969105795,0.545153,21315.0,21314.0,0.00839069]
[1673969106001,0.545153,21315.0,21314.0,0.08158069]
[1673969106255,0.545153,21315.0,21314.0,0.00839069]
[1673969107280,1.014306,21315.0,21314.0,0.00839069]
[1673969107556,0.545153,21315.0,21314.0,0.00839069]
[1673969107790,0.545153,21315.0,21314.0,0.08158069]
[1673969108039,0.076,21315.0,21314.0,0.08158069]
[1673969108810,0.076,21315.0,21314.0,0.40280269]
[1673969109309,0.076,21315.0,21314.0,0.47740269]
[1673969109561,0.076,21315.0,21314.0,1.69066273]
[1673969109812,0.07592844,21315.0,21314.0,1.69066273]
[1673969110614,0.07592844,21315.0,21314.0,1.61576273]
[1673969111432,0.938116,21320.0,21314.0,1.61476273]
[1673969111688,0.40301326,21319.0,21316.0,0.0749]
[1673969111971,0.40301326,21319.0,21316.0,0.26562595]
[1673969111972,0.87207826,21319.0,21316.0,0.26562595]
[1673969112259,0.40301326,21319.0,21316.0,0.73475595]
[1673969112509,0.40301326,21319.0,21316.0,0.54403]
[1673969112766,0.40301326,21319.0,21316.0,0.0759]
[1673969112767,0.13181245,21318.0,21316.0,0.0759]
[1673969113016,0.13181245,21318.0,21316.0,0.001]
[1673969113017,1.21874999,21317.0,21316.0,0.001]
[1673969113539,0.89752799,21317.0,21314.0,0.00739069]
[1673969113799,0.469103,21318.0,21314.0,0.55146469]
[1673969114089,0.60941667,21319.0,21316.0,0.0749]
[1673969114345,0.60941667,21319.0,21317.0,0.321222]
[1673969114601,0.551079,21319.0,21316.0,0.0759]
[1673969114896,1.07845467,21320.0,21316.0,0.26562595]
[1673969115140,1.07845467,21320.0,21316.0,0.73475495]
[1673969115141,0.009,21318.0,21316.0,0.73475495]
[1673969115430,0.469062,21320.0,21317.0,0.321222]
[1673969115679,0.082,21319.0,21317.0,0.001]
[1673969115928,0.60939967,21320.0,21316.0,0.544017]
[1673969116216,0.69139967,21320.0,21316.0,0.545017]
[1673969116463,0.60939967,21320.0,21316.0,0.544017]
[1673969116742,0.60939967,21320.0,21317.0,0.321222]
[1673969116991,0.69139967,21320.0,21317.0,0.470105]
[1673969117254,0.551062,21320.0,21317.0,0.470105]
[1673969117763,0.60939967,21320.0,21317.0,0.469105]
[1673969118013,0.90069359,21320.0,21317.0,0.469105]
[1673969118275,0.81869359,21320.0,21316.0,1.47448846]
[1673969118526,1.03250604,21320.0,21317.0,0.001]
[1673969118843,0.69139967,21320.0,21317.0,0.001]
[1673969119557,0.082,21320.0,21317.0,0.470106]
[1673969119819,0.082,21320.0,21317.0,0.91157682]
[1673969120094,0.082,21320.0,21317.0,0.470106]
[1673969120335,0.082,21320.0,21317.0,0.545006]
[1673969122103,0.90067559,21320.0,21317.0,0.470106]
[1673969123369,0.90067559,21320.0,21317.0,0.001]
[1673969124393,0.69138167,21320.0,21317.0,0.001]
[1673969124645,0.69138167,21320.0,21317.0,0.470109]
[1673969124902,0.082,21320.0,21318.0,0.44308867]
[1673969125160,0.082,21320.0,21319.0,1.334252]
[1673969125415,0.082,21320.0,21319.0,1.634252]
[1673969125672,0.082,21320.0,21319.0,1.334252]
[1673969127225,1.08834232,21324.0,21319.0,1.334252]
[1673969127492,0.14033767,21323.0,21320.0,0.19072595]
[1673969127771,0.14033767,21323.0,21319.0,0.938109]
[1673969128290,0.82867624,21324.0,21320.0,0.321222]
[1673969128560,0.62338232,21324.0,21321.0,0.321222]
[1673969128817,0.008,21323.0,21321.0,0.19072595]
[1673969129084,0.01007465,21324.0,21321.0,0.469016]
[1673969129614,0.01007465,21324.0,21321.0,0.938037]
[1673969129869,0.01007465,21324.0,21321.0,0.469016]
[1673969130132,0.06407465,21324.0,21321.0,0.469016]
[1673969130435,0.01007465,21324.0,21321.0,0.469016]
[1673969130639,0.08407465,21324.0,21321.0,0.471016]
[1673969131148,0.08407465,21324.0,21321.0,0.940037]
[1673969131420,0.08407465,21324.0,21322.0,0.32113892]
[1673969131753,0.08407465,21324.0,21323.0,0.321222]
[1673969131958,0.08407465,21324.0,21322.0,0.468997]
[1673969132222,0.08407465,21324.0,21322.0,0.68085289]
[1673969132479,0.08407465,21324.0,21323.0,0.396186]
[1673969132748,0.08407465,21324.0,21323.0,0.865163]
[1673969133041,0.08407465,21324.0,21323.0,0.468977]
[1673969133317,0.01007465,21324.0,21323.0,0.468977]
[1673969133572,0.01007465,21324.0,21322.0,0.78577468]
[1673969133573,1.0017833,21324.0,21322.0,0.02314594]
[1673969133824,0.9277833,21324.0,21322.0,0.02114594]
[1673969134084,0.9277833,21324.0,21323.0,0.002]
[1673969134085,1.0017833,21324.0,21323.0,0.002]
[1673969134592,0.5328283,21324.0,21323.0,0.002]
[1673969134863,0.4588283,21324.0,21322.0,0.02114594]
[1673969135109,0.5328283,21324.0,21322.0,0.02314594]
[1673969135369,0.08407465,21324.0,21322.0,0.09794594]
[1673969135873,0.08407465,21324.0,21322.0,0.56694394]
[1673969136146,0.01007465,21324.0,21322.0,0.56494394]
[1673969136395,0.08407465,21324.0,21323.0,0.07319]
[1673969136620,0.01007465,21324.0,21323.0,0.07319]
[1673969136911,0.08407465,21324.0,21323.0,0.863453]
[1673969137140,0.08407465,21324.0,21323.0,1.33243]
[1673969137404,0.08407465,21324.0,21322.0,0.02314594]
[1673969137920,0.01007465,21324.0,21322.0,0.02114594]
[1673969138257,0.08407465,21324.0,21323.0,0.002]
[1673969138948,0.55302965,21324.0,21323.0,0.002]
[1673969139210,0.55302965,21324.0,21322.0,0.02114594]
[1673969139211,0.47902965,21324.0,21322.0,0.02114594]
[1673969139479,1.02198465,21324.0,21322.0,0.02314594]
[1673969139984,0.94798465,21324.0,21322.0,0.02114594]
[1673969140215,1.02198465,21324.0,21323.0,0.002]
[1673969140466,0.94798465,21324.0,21322.0,0.02114594]
[1673969140726,0.321286,21323.0,21322.0,0.02314594]
[1673969140977,1.25924,21323.0,21322.0,0.02114594]
[1673969141762,1.39105245,21323.0,21322.0,0.02114594]
[1673969142052,1.77387767,21323.0,21322.0,0.02114594]
[1673969142614,2.34232028,21323.0,21322.0,0.02114594]
[1673969142827,2.34232028,21323.0,21322.0,0.00114594]
[1673969142828,3.49833401,21323.0,21322.0,0.00114594]
[1673969143136,3.63750854,21323.0,21322.0,0.00114594]
[1673969143676,3.7394522,21323.0,21322.0,0.00288471]
[1673969143941,3.52187405,21323.0,21322.0,0.00288471]
[1673969144206,0.15,21322.0,21314.0,0.00739069]
[1673969144466,0.0749,21318.0,21314.0,0.00739069]
[1673969144754,1.39132445,21317.0,21314.0,0.00739069]
[1673969145019,1.07003845,21317.0,21314.0,0.00739069]
[1673969145534,0.938226,21317.0,21314.0,0.00739069]
[1673969145795,0.469089,21318.0,21317.0,0.38283439]
[1673969146150,1.75219854,21321.0,21317.0,0.96914634]
[1673969146151,1.393633,21321.0,21317.0,0.96914634]
[1673969146413,0.469033,21321.0,21318.0,0.51201195]
[1673969146683,0.469033,21321.0,21318.0,0.19072595]
[1673969147167,0.469033,21321.0,21317.0,1.39532139]
[1673969147457,0.469033,21321.0,21317.0,1.58604734]
[1673969147700,0.469033,21321.0,21318.0,0.322286]
[1673969147701,0.076,21321.0,21318.0,0.322286]
[1673969147956,0.469017,21322.0,21319.0,0.321286]
[1673969148207,0.469017,21322.0,21319.0,0.19072595]
[1673969148460,0.076,21321.0,21319.0,0.26562595]
[1673969148708,2.08456252,21323.0,21319.0,0.543965]
[1673969148953,2.08456252,21323.0,21319.0,0.73469095]
[1673969149676,2.68535197,21323.0,21319.0,0.0749]
[1673969149979,0.076,21321.0,21319.0,0.0749]
[1673969150207,0.619,21322.0,21319.0,0.0749]
[1673969150454,0.619,21322.0,21319.0,0.001]
[1673969150948,0.60915874,21322.0,21319.0,0.001]
[1673969151208,1.07815774,21322.0,21318.0,0.0745]
[1673969151458,1.07815774,21322.0,21319.0,0.001]
[1673969151459,0.15,21321.0,21319.0,0.001]
[1673969151706,0.619033,21321.0,21319.0,0.001]
[1673969151962,0.96942985,21321.0,21319.0,0.001]
[1673969152216,0.14015874,21320.0,21319.0,0.001]
[1673969152455,1.40949193,21320.0,21319.0,0.001]
[1673969152700,1.54965067,21320.0,21319.0,0.001]
[1673969152953,1.54965067,21320.0,21316.0,0.0749]
[1673969153215,1.54130438,21320.0,21315.0,0.544036]
[1673969153479,0.13181245,21319.0,21315.0,1.013176]
[1673969153743,1.54132538,21320.0,21319.0,0.001]
[1673969154010,1.40951293,21320.0,21319.0,0.322286]
[1673969154281,1.40951293,21320.0,21315.0,1.71178081]
[1673969154282,1.40951293,21320.0,21315.0,1.34621081]
[1673969154518,1.85468221,21320.0,21316.0,0.002]
[1673969154768,1.79968221,21320.0,21315.0,1.15548086]
[1673969155021,1.87568221,21320.0,21319.0,0.001]
[1673969155277,1.48551293,21320.0,21319.0,0.001]
[1673969155536,1.48551293,21320.0,21319.0,0.06752]
[1673969155822,0.54740593,21320.0,21319.0,0.06752]
[1673969156095,0.54740593,21320.0,21318.0,0.0749]
[1673969156096,0.47140593,21320.0,21318.0,0.0749]
[1673969156355,0.47540593,21320.0,21318.0,0.0749]
[1673969156607,0.47140593,21320.0,21318.0,0.0749]
[1673969156873,0.54740593,21320.0,21319.0,0.06752]
[1673969157133,0.47140593,21320.0,21319.0,0.06652]
[1673969157392,0.54740593,21320.0,21319.0,0.06652]
[1673969157642,0.47140593,21320.0,21319.0,0.06652]
[1673969157910,0.54740593,21320.0,21319.0,0.06852]
[1673969158927,0.47140593,21320.0,21319.0,0.06652]
[1673969159188,0.52640593,21320.0,21319.0,0.06852]
[1673969159454,0.52640593,21320.0,21318.0,1.013043]
[1673969159720,0.60240593,21320.0,21319.0,0.002]
[1673969159942,0.47140593,21320.0,21318.0,1.013043]
[1673969160245,0.52640593,21320.0,21319.0,0.002]
[1673969160502,0.47140593,21320.0,21318.0,0.938143]
[1673969160754,0.52640593,21320.0,21318.0,0.940143]
[1673969161009,0.52640593,21320.0,21318.0,0.65491033]
[1673969162282,0.52640593,21320.0,21318.0,0.18584233]
[1673969163903,0.99544993,21320.0,21318.0,0.002]
[1673969164190,1.13560867,21320.0,21318.0,0.002]
[1673969164471,1.34575535,21320.0,21318.0,0.002]
[1673969164721,1.13551724,21320.0,21318.0,0.002]
[1673969165252,0.5263145,21320.0,21318.0,0.002]
[1673969165781,0.9953595,21320.0,21318.0,0.002]
[1673969166044,1.13551824,21320.0,21318.0,0.002]
[1673969166574,1.60456124,21320.0,21318.0,0.002]
[1673969167617,1.60456124,21320.0,21318.0,0.002]
[1673969168935,0.15,21319.0,21318.0,0.002]
[1673969169198,1.2109117,21319.0,21318.0,0.002]
[1673969169499,1.07828874,21319.0,21318.0,0.00169729]
[1673969169765,1.60981285,21319.0,21318.0,0.00169729]
[1673969170020,1.46965411,21319.0,21315.0,0.469137]
[1673969170271,0.14038847,21318.0,21315.0,0.469137]
[1673969170525,1.21038292,21318.0,21314.0,0.47654669]
[1673969172147,1.08657047,21318.0,21315.0,0.015]
[1673969172410,1.07857047,21318.0,21314.0,0.47654669]
[1673969172672,1.08557047,21318.0,21314.0,0.49154669]
[1673969173512,1.18697216,21317.0,21314.0,0.02239069]
[1673969173785,2.33908907,21316.0,21314.0,0.02239069]
[1673969174044,0.321286,21315.0,21314.0,0.02239069]
[1673969174302,2.31142605,21315.0,21314.0,0.02239069]
[1673969174564,2.31142605,21315.0,21314.0,0.00739069]
[1673969174565,4.02873171,21315.0,21314.0,0.00739069]
[1673969174834,4.02938806,21315.0,21314.0,0.00362751]
[1673969175101,3.62055989,21315.0,21314.0,0.00262751]
[1673969175354,3.62055989,21315.0,21314.0,0.00362751]
[1673969175355,3.69755989,21315.0,21314.0,0.00362751]
[1673969175629,3.14729651,21315.0,21314.0,0.00262751]
[1673969175881,3.14729651,21315.0,21314.0,0.00362751]
[1673969175882,3.2476896,21315.0,21314.0,0.00362751]
[1673969176137,3.54762336,21315.0,21314.0,0.00262751]
[1673969176394,3.24768412,21315.0,21314.0,0.00362751]
[1673969176668,3.17068412,21315.0,21314.0,0.00262751]
[1673969176922,3.45102656,21315.0,21314.0,0.00262751]
[1673969177669,3.17060304,21315.0,21314.0,0.00262751]
[1673969177690,3.01372231,21315.0,21314.0,0.00362751]
[1673969177930,3.01372231,21315.0,21314.0,0.00262751]
[1673969177931,3.92521258,21315.0,21314.0,0.00262751]
[1673969178190,4.00221258,21315.0,21314.0,0.00362751]
[1673969178453,3.37091705,21315.0,21314.0,0.00362751]
[1673969178747,3.6445631,21315.0,21314.0,0.00262751]
[1673969178970,4.00189188,21315.0,21314.0,0.00362751]
[1673969179230,3.92489188,21315.0,21314.0,0.00262751]
[1673969179484,3.7215631,21315.0,21314.0,0.00362751]
[1673969180488,4.00193258,21315.0,21314.0,0.00362751]
[1673969181004,3.48768694,21315.0,21314.0,0.00362751]
[1673969181279,4.00311216,21315.0,21314.0,0.00362751]
[1673969181551,3.72274268,21315.0,21314.0,0.00362751]
[1673969182029,4.00298247,21315.0,21314.0,0.00362751]
[1673969182297,4.00298247,21315.0,21314.0,0.00262751]
[1673969182298,3.57533099,21315.0,21314.0,0.00262751]
[1673969182568,4.00297704,21315.0,21314.0,0.00362751]
[1673969182830,3.24863508,21315.0,21314.0,0.00362751]
[1673969183342,3.17163508,21315.0,21314.0,0.00262751]
[1673969183597,2.63142894,21315.0,21314.0,0.00262751]
[1673969183918,1.87683733,21315.0,21314.0,0.00262751]
[1673969184111,1.259592,21315.0,21314.0,0.00262751]
[1673969184411,1.336592,21315.0,21314.0,0.00362751]
[1673969184679,1.259592,21315.0,21314.0,0.00262751]
[1673969184936,1.336592,21315.0,21314.0,0.00362751]
[1673969185427,1.259592,21315.0,21314.0,0.00262751]
[1673969185444,1.336592,21315.0,21314.0,0.00362751]
[1673969185686,1.259592,21315.0,21314.0,0.00262751]
[1673969185963,1.015306,21315.0,21314.0,0.00362751]
[1673969186223,1.015306,21315.0,21314.0,0.00262751]
[1673969186224,0.938306,21315.0,21314.0,0.00262751]
[1673969186485,0.938306,21315.0,21314.0,0.00362751]
[1673969186486,1.015306,21315.0,21314.0,0.00362751]
[1673969187507,0.938306,21315.0,21314.0,0.00262751]
[1673969187761,1.015306,21315.0,21314.0,0.00362751]